[Event "Titled Tuesday Blitz April 05 Late 2022"]
[White "Rorrer, Grayson"]
[Black "Foisor, Sabina-Francesca"]
[WhiteFideId "30944996"]
[BlackFideId "1212915"]
[WhiteElo "2122"]
[BlackElo "2243"]
[Result "1-0"]
[Round "01"]
[TimeControl "180+1"]
[Date "2022.04.06"]
[WhiteClock "0:00:14"]
[BlackClock "0:00:09"]

1. e4 {[%clk 0:03:00]}  c6 {[%clk 0:02:48]} 2. d4 {[%clk 0:03:00]}  d5 {[%clk 0:02:42]} 3. exd5 {[%clk 0:03:01]}  cxd5 {[%clk 0:02:41]} 4. Bd3 {[%clk 0:03:01]}  g6 {[%clk 0:02:37]} 5. Nf3 {[%clk 0:03:01]}  Bg7 {[%clk 0:02:37]} 6. O-O {[%clk 0:03:01]}  Nc6 {[%clk 0:02:35]} 7. c3 {[%clk 0:03:01]}  Nf6 {[%clk 0:02:30]} 8. Bf4 {[%clk 0:03:00]}  O-O {[%clk 0:02:29]} 9. h3 {[%clk 0:02:57]}  a6 {[%clk 0:02:27]} 10. Nbd2 {[%clk 0:02:55]}  b5 {[%clk 0:02:25]} 11. Ne5 {[%clk 0:02:49]}  Bb7 {[%clk 0:02:24]} 12. Re1 {[%clk 0:02:47]}  Rc8 {[%clk 0:02:14]} 13. Qe2 {[%clk 0:02:41]}  e6 {[%clk 0:02:07]} 14. Nb3 {[%clk 0:02:34]}  Nxe5 {[%clk 0:02:01]} 15. Bxe5 {[%clk 0:02:35]}  Nd7 {[%clk 0:02:01]} 16. Bxg7 {[%clk 0:02:32]}  Kxg7 {[%clk 0:02:02]} 17. a4 {[%clk 0:02:28]}  Bc6 {[%clk 0:01:51]} 18. axb5 {[%clk 0:02:07]}  Bxb5 {[%clk 0:01:30]} 19. Bxb5 {[%clk 0:01:29]}  axb5 {[%clk 0:01:30]} 20. Qxb5 {[%clk 0:01:30]}  Rb8 {[%clk 0:01:28]} 21. Qa4 {[%clk 0:01:30]}  Nb6 {[%clk 0:01:19]} 22. Qa7 {[%clk 0:01:07]}  Nc4 {[%clk 0:01:03]} 23. Nc5 {[%clk 0:01:05]}  Kg8 {[%clk 0:00:38]} 24. b3 {[%clk 0:01:01]}  Nb6 {[%clk 0:00:16]} 25. Qa6 {[%clk 0:00:49]}  Ra8 {[%clk 0:00:14]} 26. Qd3 {[%clk 0:00:47]}  Qf6 {[%clk 0:00:12]} 27. Ra6 {[%clk 0:00:29]}  Rxa6 {[%clk 0:00:11]} 28. Qxa6 {[%clk 0:00:30]}  Rb8 {[%clk 0:00:10]} 29. Re3 {[%clk 0:00:19]}  Qd8 {[%clk 0:00:10]} 30. Rf3 {[%clk 0:00:15]}  Qc8 {[%clk 0:00:10]} 31. Qa7 {[%clk 0:00:14]}  Qf8 {[%clk 0:00:10]} 32. Rxf7 {[%clk 0:00:13]}  Qxf7 {[%clk 0:00:09]} 33. Qxb8+ {[%clk 0:00:14]}  Kg7 {[%clk 0:00:08]} 34. Qxb6 {[%clk 0:00:14]}  Qf4 {[%clk 0:00:09]} 35. Nxe6+ {[%clk 0:00:14]} 1-0


[Site "https://www.chess.com"]

[Event "Titled Tuesday Blitz April 05 Late 2022"]
[White "Rudzinska, Michalina"]
[Black "Weetik, Vjacheslav"]
[WhiteFideId "1172883"]
[BlackFideId "4153472"]
[WhiteElo "1904"]
[BlackElo "2469"]
[Result "1-0"]
[Round "01"]
[TimeControl "180+1"]
[Date "2022.04.06"]
[WhiteClock "0:01:25"]
[BlackClock "0:00:17"]

1. e4 {[%clk 0:03:00]}  c6 {[%clk 0:02:56]} 2. d4 {[%clk 0:02:59]}  d5 {[%clk 0:02:56]} 3. Nc3 {[%clk 0:02:59]}  dxe4 {[%clk 0:02:56]} 4. Nxe4 {[%clk 0:02:59]}  Nf6 {[%clk 0:02:56]} 5. Nxf6+ {[%clk 0:02:59]}  exf6 {[%clk 0:02:56]} 6. c3 {[%clk 0:02:59]}  Bd6 {[%clk 0:02:56]} 7. Bd3 {[%clk 0:02:59]}  O-O {[%clk 0:02:57]} 8. Ne2 {[%clk 0:02:59]}  Re8 {[%clk 0:02:58]} 9. O-O {[%clk 0:02:59]}  Nd7 {[%clk 0:02:58]} 10. Bf4 {[%clk 0:02:59]}  Nf8 {[%clk 0:02:57]} 11. Bxd6 {[%clk 0:02:58]}  Qxd6 {[%clk 0:02:58]} 12. Ng3 {[%clk 0:02:59]}  g6 {[%clk 0:02:55]} 13. Re1 {[%clk 0:02:53]}  Rxe1+ {[%clk 0:02:46]} 14. Qxe1 {[%clk 0:02:53]}  f5 {[%clk 0:02:47]} 15. Qd2 {[%clk 0:02:49]}  Ne6 {[%clk 0:02:43]} 16. Re1 {[%clk 0:02:49]}  c5 {[%clk 0:02:35]} 17. Bxf5 {[%clk 0:02:22]}  cxd4 {[%clk 0:02:07]} 18. cxd4 {[%clk 0:02:15]}  Kg7 {[%clk 0:01:19]} 19. d5 {[%clk 0:01:57]}  Nf8 {[%clk 0:00:49]} 20. Re8 {[%clk 0:01:30]}  Nd7 {[%clk 0:00:17]} 21. Nh5+ {[%clk 0:01:25]} 1-0


[Site "https://www.chess.com"]

[Event "Titled Tuesday Blitz April 05 Late 2022"]
[White "Sarana, Alexey"]
[Black "Swicarz, Maciej"]
[WhiteFideId "24133795"]
[BlackFideId "1113585"]
[WhiteElo "2666"]
[BlackElo "2057"]
[Result "1-0"]
[Round "01"]
[TimeControl "180+1"]
[Date "2022.04.05"]
[WhiteClock "0:02:06"]
[BlackClock "0:01:17"]

1. d4 {[%clk 0:02:57]}  Nf6 {[%clk 0:02:57]} 2. c4 {[%clk 0:02:57]}  e6 {[%clk 0:02:56]} 3. Nf3 {[%clk 0:02:58]}  c5 {[%clk 0:02:52]} 4. d5 {[%clk 0:02:58]}  exd5 {[%clk 0:02:53]} 5. cxd5 {[%clk 0:02:58]}  d6 {[%clk 0:02:53]} 6. Nc3 {[%clk 0:02:59]}  g6 {[%clk 0:02:53]} 7. e4 {[%clk 0:02:58]}  Bg7 {[%clk 0:02:54]} 8. Be2 {[%clk 0:02:58]}  O-O {[%clk 0:02:53]} 9. Be3 {[%clk 0:02:58]}  a6 {[%clk 0:02:52]} 10. a4 {[%clk 0:02:58]}  Re8 {[%clk 0:02:52]} 11. Nd2 {[%clk 0:02:58]}  Nbd7 {[%clk 0:02:47]} 12. O-O {[%clk 0:02:58]}  Qe7 {[%clk 0:02:42]} 13. Bf4 {[%clk 0:02:55]}  Ne5 {[%clk 0:02:33]} 14. h3 {[%clk 0:02:52]}  Bd7 {[%clk 0:02:22]} 15. Bh2 {[%clk 0:02:47]}  Bc8 {[%clk 0:02:16]} 16. a5 {[%clk 0:02:39]}  Rb8 {[%clk 0:02:09]} 17. Re1 {[%clk 0:02:22]}  h5 {[%clk 0:02:05]} 18. f4 {[%clk 0:02:19]}  Ned7 {[%clk 0:02:04]} 19. Bf3 {[%clk 0:02:15]}  b5 {[%clk 0:01:58]} 20. axb6 {[%clk 0:02:11]}  Rxb6 {[%clk 0:01:58]} 21. e5 {[%clk 0:02:09]}  Nh7 {[%clk 0:01:36]} 22. Nc4 {[%clk 0:02:07]}  Rb4 {[%clk 0:01:21]} 23. Nxd6 {[%clk 0:02:06]}  Rf8 {[%clk 0:01:22]} 24. Nxc8 {[%clk 0:02:05]}  Rxc8 {[%clk 0:01:23]} 25. d6 {[%clk 0:02:05]}  Qe6 {[%clk 0:01:19]} 26. Nd5 {[%clk 0:02:06]}  Rxb2 {[%clk 0:01:17]} 27. Ne7+ {[%clk 0:02:06]} 1-0


[Site "https://www.chess.com"]

[Event "Titled Tuesday Blitz April 05 Late 2022"]
[White "Sevian, Samuel"]
[Black "Shapiro, David"]
[WhiteFideId "2040506"]
[BlackFideId "24133523"]
[WhiteElo "2698"]
[BlackElo "2320"]
[Result "1/2-1/2"]
[Round "01"]
[TimeControl "180+1"]
[Date "2022.04.05"]
[WhiteClock "0:02:06"]
[BlackClock "0:00:07"]

1. d4 {[%clk 0:03:00]}  d5 {[%clk 0:02:59]} 2. c4 {[%clk 0:03:01]}  c6 {[%clk 0:02:59]} 3. Nc3 {[%clk 0:03:01]}  Nf6 {[%clk 0:02:59]} 4. e3 {[%clk 0:03:02]}  a6 {[%clk 0:02:58]} 5. Bd3 {[%clk 0:03:02]}  b5 {[%clk 0:02:57]} 6. c5 {[%clk 0:03:02]}  g6 {[%clk 0:02:56]} 7. f4 {[%clk 0:03:02]}  Bg7 {[%clk 0:02:56]} 8. Nf3 {[%clk 0:03:03]}  O-O {[%clk 0:02:57]} 9. Qc2 {[%clk 0:03:03]}  a5 {[%clk 0:02:54]} 10. Ne5 {[%clk 0:03:03]}  Nfd7 {[%clk 0:02:50]} 11. O-O {[%clk 0:03:03]}  Nxe5 {[%clk 0:02:43]} 12. dxe5 {[%clk 0:03:03]}  f6 {[%clk 0:02:43]} 13. exf6 {[%clk 0:03:03]}  exf6 {[%clk 0:02:32]} 14. e4 {[%clk 0:03:03]}  b4 {[%clk 0:02:28]} 15. Na4 {[%clk 0:03:02]}  dxe4 {[%clk 0:02:28]} 16. Bc4+ {[%clk 0:03:02]}  Kh8 {[%clk 0:02:26]} 17. Nb6 {[%clk 0:03:03]}  Ra7 {[%clk 0:02:22]} 18. Be3 {[%clk 0:03:02]}  Qe7 {[%clk 0:02:12]} 19. Rad1 {[%clk 0:03:02]}  Be6 {[%clk 0:02:12]} 20. Rd6 {[%clk 0:03:02]}  Bxc4 {[%clk 0:02:08]} 21. Qxc4 {[%clk 0:03:03]}  f5 {[%clk 0:02:03]} 22. Rfd1 {[%clk 0:03:02]}  Qf7 {[%clk 0:01:49]} 23. Re6 {[%clk 0:02:52]}  Re7 {[%clk 0:01:48]} 24. Rdd6 {[%clk 0:02:50]}  Rxe6 {[%clk 0:01:48]} 25. Rxe6 {[%clk 0:02:44]}  Re8 {[%clk 0:01:37]} 26. Rxe4 {[%clk 0:02:44]}  Qxc4 {[%clk 0:01:30]} 27. Rxe8+ {[%clk 0:02:44]}  Qg8 {[%clk 0:01:31]} 28. Rxg8+ {[%clk 0:02:45]}  Kxg8 {[%clk 0:01:32]} 29. b3 {[%clk 0:02:45]}  Kf7 {[%clk 0:01:30]} 30. Nc4 {[%clk 0:02:45]}  Ke6 {[%clk 0:01:28]} 31. Nxa5 {[%clk 0:02:45]}  Kd5 {[%clk 0:01:28]} 32. Nc4 {[%clk 0:02:45]}  Bd4 {[%clk 0:01:20]} 33. Kf2 {[%clk 0:02:45]}  Kxc5 {[%clk 0:01:12]} 34. Ke2 {[%clk 0:02:45]}  Nd7 {[%clk 0:01:10]} 35. Kd3 {[%clk 0:02:45]}  Bxe3 {[%clk 0:01:10]} 36. Nxe3 {[%clk 0:02:46]}  Nb6 {[%clk 0:01:06]} 37. g3 {[%clk 0:02:46]}  Kd6 {[%clk 0:00:44]} 38. h3 {[%clk 0:02:45]}  h5 {[%clk 0:00:37]} 39. Ng2 {[%clk 0:02:44]}  Nd5 {[%clk 0:00:29]} 40. Nh4 {[%clk 0:02:44]}  Ne7 {[%clk 0:00:30]} 41. Kc4 {[%clk 0:02:44]}  c5 {[%clk 0:00:30]} 42. Nf3 {[%clk 0:02:45]}  Nc6 {[%clk 0:00:29]} 43. h4 {[%clk 0:02:43]}  Na5+ {[%clk 0:00:27]} 44. Kb5 {[%clk 0:02:43]}  Nc6 {[%clk 0:00:28]} 45. Kb6 {[%clk 0:02:43]}  Nd4 {[%clk 0:00:25]} 46. Ne5 {[%clk 0:02:44]}  Ne2 {[%clk 0:00:25]} 47. Nxg6 {[%clk 0:02:41]}  Nxg3 {[%clk 0:00:26]} 48. Kb5 {[%clk 0:02:39]}  Kd5 {[%clk 0:00:25]} 49. Ne7+ {[%clk 0:02:38]}  Ke4 {[%clk 0:00:25]} 50. Kxc5 {[%clk 0:02:36]}  Kxf4 {[%clk 0:00:26]} 51. Kxb4 {[%clk 0:02:36]}  Ke4 {[%clk 0:00:25]} 52. a4 {[%clk 0:02:35]}  f4 {[%clk 0:00:24]} 53. a5 {[%clk 0:02:36]}  f3 {[%clk 0:00:24]} 54. a6 {[%clk 0:02:36]}  f2 {[%clk 0:00:25]} 55. a7 {[%clk 0:02:37]}  f1=Q {[%clk 0:00:25]} 56. a8=Q+ {[%clk 0:02:38]}  Kf4 {[%clk 0:00:19]} 57. Qf8+ {[%clk 0:02:33]}  Kg4 {[%clk 0:00:19]} 58. Qg7+ {[%clk 0:02:28]}  Kxh4 {[%clk 0:00:13]} 59. Ng6+ {[%clk 0:02:29]}  Kh3 {[%clk 0:00:13]} 60. Qe7 {[%clk 0:02:24]}  Qf5 {[%clk 0:00:11]} 61. Qh4+ {[%clk 0:02:16]}  Kg2 {[%clk 0:00:11]} 62. Nf4+ {[%clk 0:02:17]}  Kf3 {[%clk 0:00:12]} 63. Nxh5 {[%clk 0:02:10]}  Qxh5 {[%clk 0:00:12]} 64. Qd8 {[%clk 0:02:10]}  Qg4+ {[%clk 0:00:12]} 65. Ka3 {[%clk 0:02:10]}  Ne4 {[%clk 0:00:10]} 66. b4 {[%clk 0:02:10]}  Qf4 {[%clk 0:00:08]} 67. Ka4 {[%clk 0:02:09]}  Nd2 {[%clk 0:00:06]} 68. Qd5+ {[%clk 0:02:08]}  Ne4 {[%clk 0:00:04]} 69. b5 {[%clk 0:02:05]}  Ke3 {[%clk 0:00:04]} 70. Ka5 {[%clk 0:02:04]}  Qc7+ {[%clk 0:00:05]} 71. b6 {[%clk 0:02:03]}  Qc5+ {[%clk 0:00:05]} 72. Qxc5+ {[%clk 0:02:03]}  Nxc5 {[%clk 0:00:06]} 73. Kb5 {[%clk 0:02:04]}  Nb7 {[%clk 0:00:06]} 74. Kc6 {[%clk 0:02:05]}  Na5+ {[%clk 0:00:07]} 75. Kc7 {[%clk 0:02:05]}  Kd4 {[%clk 0:00:07]} 76. b7 {[%clk 0:02:06]}  Nxb7 {[%clk 0:00:07]} 1/2-1/2


[Site "https://www.chess.com"]

[Event "Titled Tuesday Blitz April 05 Late 2022"]
[White "Shandrygin, Nikita"]
[Black "Holt, Conrad"]
[WhiteFideId "24198668"]
[BlackFideId "2034387"]
[WhiteElo "2323"]
[BlackElo "2586"]
[Result "1/2-1/2"]
[Round "01"]
[TimeControl "180+1"]
[Date "2022.04.05"]
[WhiteClock "0:00:07"]
[BlackClock "0:00:07"]

1. Nf3 {[%clk 0:02:55]}  d5 {[%clk 0:02:57]} 2. g3 {[%clk 0:02:56]}  Bg4 {[%clk 0:02:56]} 3. Bg2 {[%clk 0:02:56]}  Nd7 {[%clk 0:02:57]} 4. d4 {[%clk 0:02:56]}  e6 {[%clk 0:02:56]} 5. O-O {[%clk 0:02:53]}  Bd6 {[%clk 0:02:55]} 6. c4 {[%clk 0:02:52]}  c6 {[%clk 0:02:52]} 7. Nbd2 {[%clk 0:02:51]}  Ngf6 {[%clk 0:02:51]} 8. b3 {[%clk 0:02:51]}  O-O {[%clk 0:02:51]} 9. Bb2 {[%clk 0:02:51]}  Qb8 {[%clk 0:02:50]} 10. Rc1 {[%clk 0:02:44]}  a5 {[%clk 0:02:48]} 11. a3 {[%clk 0:02:41]}  Re8 {[%clk 0:02:38]} 12. Re1 {[%clk 0:02:05]}  h6 {[%clk 0:02:16]} 13. Nh4 {[%clk 0:01:43]}  e5 {[%clk 0:02:11]} 14. cxd5 {[%clk 0:01:38]}  cxd5 {[%clk 0:02:08]} 15. dxe5 {[%clk 0:01:37]}  Bxe5 {[%clk 0:02:04]} 16. Bxe5 {[%clk 0:01:35]}  Nxe5 {[%clk 0:02:04]} 17. Nhf3 {[%clk 0:01:31]}  Nc6 {[%clk 0:01:59]} 18. Nf1 {[%clk 0:01:17]}  Qd6 {[%clk 0:01:56]} 19. Ne3 {[%clk 0:01:02]}  Rxe3 {[%clk 0:01:52]} 20. fxe3 {[%clk 0:01:02]}  Qxa3 {[%clk 0:01:52]} 21. Nd4 {[%clk 0:00:57]}  a4 {[%clk 0:01:17]} 22. Ra1 {[%clk 0:00:49]}  Qe7 {[%clk 0:01:15]} 23. Qd2 {[%clk 0:00:41]}  a3 {[%clk 0:01:11]} 24. Rec1 {[%clk 0:00:22]}  Nb4 {[%clk 0:00:50]} 25. Nb5 {[%clk 0:00:19]}  a2 {[%clk 0:00:45]} 26. Rc7 {[%clk 0:00:16]}  Qe5 {[%clk 0:00:43]} 27. Qd4 {[%clk 0:00:14]}  Qxd4 {[%clk 0:00:05]} 28. Nxd4 {[%clk 0:00:15]}  Ra7 {[%clk 0:00:04]} 29. Bf3 {[%clk 0:00:11]}  Bd7 {[%clk 0:00:04]} 30. Nc2 {[%clk 0:00:10]}  Nxc2 {[%clk 0:00:01]} 31. Rxc2 {[%clk 0:00:11]}  Bc6 {[%clk 0:00:01]} 32. Rcxa2 {[%clk 0:00:11]}  Rxa2 {[%clk 0:00:02]} 33. Rxa2 {[%clk 0:00:12]}  Kf8 {[%clk 0:00:02]} 34. Ra8+ {[%clk 0:00:12]}  Ke7 {[%clk 0:00:03]} 35. Kf2 {[%clk 0:00:13]}  g6 {[%clk 0:00:03]} 36. Ke1 {[%clk 0:00:12]}  h5 {[%clk 0:00:04]} 37. Kd2 {[%clk 0:00:12]}  Nd7 {[%clk 0:00:04]} 38. Kc3 {[%clk 0:00:11]}  Kd6 {[%clk 0:00:04]} 39. b4 {[%clk 0:00:10]}  Nf6 {[%clk 0:00:04]} 40. Ra1 {[%clk 0:00:10]}  Nd7 {[%clk 0:00:04]} 41. Rd1 {[%clk 0:00:10]}  Ke6 {[%clk 0:00:04]} 42. b5 {[%clk 0:00:08]}  Bxb5 {[%clk 0:00:04]} 43. Bxd5+ {[%clk 0:00:07]}  Ke7 {[%clk 0:00:04]} 44. Kd4 {[%clk 0:00:05]}  Bxe2 {[%clk 0:00:04]} 45. Rd2 {[%clk 0:00:06]}  Ba6 {[%clk 0:00:03]} 46. Rb2 {[%clk 0:00:06]}  Nf6 {[%clk 0:00:03]} 47. Bxb7 {[%clk 0:00:07]}  Bf1 {[%clk 0:00:03]} 48. e4 {[%clk 0:00:07]}  Bh3 {[%clk 0:00:03]} 49. e5 {[%clk 0:00:07]}  Nd7 {[%clk 0:00:03]} 50. Bd5 {[%clk 0:00:08]}  Nf8 {[%clk 0:00:02]} 51. Rf2 {[%clk 0:00:08]}  Be6 {[%clk 0:00:02]} 52. Be4 {[%clk 0:00:08]}  Nd7 {[%clk 0:00:02]} 53. Bd5 {[%clk 0:00:08]}  Nf8 {[%clk 0:00:03]} 54. Bxe6 {[%clk 0:00:08]}  Nxe6+ {[%clk 0:00:04]} 55. Ke4 {[%clk 0:00:09]}  Nc7 {[%clk 0:00:04]} 56. Rf6 {[%clk 0:00:08]}  Ne6 {[%clk 0:00:04]} 57. Rf1 {[%clk 0:00:08]}  Ng5+ {[%clk 0:00:04]} 58. Kd5 {[%clk 0:00:08]}  Ne6 {[%clk 0:00:04]} 59. Ra1 {[%clk 0:00:08]}  Nc7+ {[%clk 0:00:04]} 60. Ke4 {[%clk 0:00:07]}  Ne6 {[%clk 0:00:05]} 61. Ra7+ {[%clk 0:00:07]}  Kf8 {[%clk 0:00:05]} 62. h4 {[%clk 0:00:07]}  Kg7 {[%clk 0:00:05]} 63. Kd5 {[%clk 0:00:06]}  g5 {[%clk 0:00:04]} 64. hxg5 {[%clk 0:00:06]}  Nxg5 {[%clk 0:00:05]} 65. Kd6 {[%clk 0:00:06]}  Ne4+ {[%clk 0:00:05]} 66. Ke7 {[%clk 0:00:06]}  Kg6 {[%clk 0:00:05]} 67. Ke8 {[%clk 0:00:06]}  Ng5 {[%clk 0:00:05]} 68. Ra6+ {[%clk 0:00:06]}  Kf5 {[%clk 0:00:05]} 69. Rh6 {[%clk 0:00:06]}  Kxe5 {[%clk 0:00:05]} 70. Rxh5 {[%clk 0:00:06]}  Kf5 {[%clk 0:00:06]} 71. Ke7 {[%clk 0:00:06]}  Kg4 {[%clk 0:00:06]} 72. Rxg5+ {[%clk 0:00:05]}  Kxg5 {[%clk 0:00:06]} 73. Kxf7 {[%clk 0:00:06]}  Kg4 {[%clk 0:00:07]} 74. Ke6 {[%clk 0:00:07]}  Kxg3 {[%clk 0:00:07]} 1/2-1/2


[Site "https://www.chess.com"]

[Event "Titled Tuesday Blitz April 05 Late 2022"]
[White "Shimanov, Aleksandr"]
[Black "Garagulya, Konstantin"]
[WhiteFideId "4198603"]
[BlackFideId "4128931"]
[WhiteElo "2636"]
[BlackElo "2329"]
[Result "1-0"]
[Round "01"]
[TimeControl "180+1"]
[Date "2022.04.05"]
[WhiteClock "0:00:56"]
[BlackClock "0:00:21"]

1. d4 {[%clk 0:02:52]}  d5 {[%clk 0:02:58]} 2. Nc3 {[%clk 0:02:48]}  Nf6 {[%clk 0:02:55]} 3. Bf4 {[%clk 0:02:47]}  c6 {[%clk 0:02:55]} 4. e3 {[%clk 0:02:46]}  Bf5 {[%clk 0:02:55]} 5. f3 {[%clk 0:02:46]}  h6 {[%clk 0:02:54]} 6. g4 {[%clk 0:02:45]}  Bg6 {[%clk 0:02:52]} 7. h4 {[%clk 0:02:45]}  Qb6 {[%clk 0:02:49]} 8. Rb1 {[%clk 0:02:33]}  e6 {[%clk 0:02:48]} 9. Bd3 {[%clk 0:02:31]}  Bxd3 {[%clk 0:02:47]} 10. cxd3 {[%clk 0:02:32]}  Nbd7 {[%clk 0:02:43]} 11. Nge2 {[%clk 0:02:30]}  c5 {[%clk 0:02:43]} 12. dxc5 {[%clk 0:02:29]}  Bxc5 {[%clk 0:02:42]} 13. d4 {[%clk 0:02:25]}  Be7 {[%clk 0:02:42]} 14. Kf2 {[%clk 0:02:22]}  Rc8 {[%clk 0:02:09]} 15. Qd3 {[%clk 0:02:17]}  Qa6 {[%clk 0:02:07]} 16. Nb5 {[%clk 0:02:04]}  Qb6 {[%clk 0:01:58]} 17. Rbc1 {[%clk 0:01:57]}  Rc6 {[%clk 0:01:58]} 18. a4 {[%clk 0:01:51]}  a6 {[%clk 0:01:45]} 19. Bc7 {[%clk 0:01:47]}  Rxc7 {[%clk 0:01:22]} 20. Nxc7+ {[%clk 0:01:48]}  Kd8 {[%clk 0:01:23]} 21. Rc2 {[%clk 0:01:24]}  Bd6 {[%clk 0:01:23]} 22. Rhc1 {[%clk 0:01:23]}  Ke7 {[%clk 0:01:16]} 23. Kg2 {[%clk 0:01:13]}  Rd8 {[%clk 0:00:34]} 24. Nf4 {[%clk 0:00:56]}  g6 {[%clk 0:00:21]} 25. g5 {[%clk 0:00:56]}  hxg5 {[%clk 0:00:20]} 26. hxg5 {[%clk 0:00:56]}  Nh7 {[%clk 0:00:21]} 27. Ncxd5+ {[%clk 0:00:56]} 1-0


[Site "https://www.chess.com"]

[Event "Titled Tuesday Blitz April 05 Late 2022"]
[White "Sliwicki, Damian"]
[Black "Leiva, Gianmarco"]
[WhiteFideId "1127128"]
[BlackFideId "3804399"]
[WhiteElo "2084"]
[BlackElo "2323"]
[Result "1-0"]
[Round "01"]
[TimeControl "180+1"]
[Date "2022.04.06"]
[WhiteClock "0:00:25"]
[BlackClock "0:00:02"]

1. e4 {[%clk 0:02:58]}  c5 {[%clk 0:02:45]} 2. g4 {[%clk 0:02:37]}  d5 {[%clk 0:02:44]} 3. Bg2 {[%clk 0:02:30]}  dxe4 {[%clk 0:02:43]} 4. Bxe4 {[%clk 0:02:31]}  Nf6 {[%clk 0:02:43]} 5. Bf3 {[%clk 0:02:30]}  Nc6 {[%clk 0:02:43]} 6. d3 {[%clk 0:02:29]}  Nd4 {[%clk 0:02:42]} 7. g5 {[%clk 0:02:24]}  Nxf3+ {[%clk 0:02:39]} 8. Qxf3 {[%clk 0:02:25]}  Nd5 {[%clk 0:02:39]} 9. Ne2 {[%clk 0:02:20]}  Nb4 {[%clk 0:02:34]} 10. Na3 {[%clk 0:02:18]}  Bd7 {[%clk 0:02:34]} 11. O-O {[%clk 0:02:04]}  Bc6 {[%clk 0:02:33]} 12. Qf5 {[%clk 0:01:53]}  e6 {[%clk 0:02:11]} 13. Qe5 {[%clk 0:01:45]}  Nxc2 {[%clk 0:01:22]} 14. Nxc2 {[%clk 0:01:39]}  Qxd3 {[%clk 0:01:22]} 15. Ne1 {[%clk 0:01:07]}  Qd7 {[%clk 0:00:44]} 16. Bf4 {[%clk 0:01:04]}  f6 {[%clk 0:00:35]} 17. gxf6 {[%clk 0:00:57]}  Rg8 {[%clk 0:00:35]} 18. Qh5+ {[%clk 0:00:52]}  Qf7 {[%clk 0:00:26]} 19. Qxf7+ {[%clk 0:00:50]}  Kxf7 {[%clk 0:00:27]} 20. fxg7 {[%clk 0:00:47]}  Bxg7 {[%clk 0:00:28]} 21. Bg3 {[%clk 0:00:34]}  h5 {[%clk 0:00:28]} 22. h4 {[%clk 0:00:32]}  Bb5 {[%clk 0:00:20]} 23. Nc3 {[%clk 0:00:29]}  Bxf1 {[%clk 0:00:19]} 24. Kxf1 {[%clk 0:00:30]}  Bxc3 {[%clk 0:00:16]} 25. bxc3 {[%clk 0:00:31]}  Rad8 {[%clk 0:00:15]} 26. Nf3 {[%clk 0:00:31]}  Ke7 {[%clk 0:00:10]} 27. Bf4 {[%clk 0:00:30]}  Rd3 {[%clk 0:00:09]} 28. Bg5+ {[%clk 0:00:31]}  Kd6 {[%clk 0:00:07]} 29. Bf4+ {[%clk 0:00:31]}  Ke7 {[%clk 0:00:06]} 30. Ne5 {[%clk 0:00:29]}  Rxc3 {[%clk 0:00:06]} 31. Rd1 {[%clk 0:00:29]}  Kf6 {[%clk 0:00:02]} 32. Rd7 {[%clk 0:00:25]}  Rh3 {[%clk 0:00:02]} 33. Rf7# {[%clk 0:00:25]} 1-0


[Site "https://www.chess.com"]

[Event "Titled Tuesday Blitz April 05 Late 2022"]
[White "Smirnov, Pavel"]
[Black "Martin Duque, Jesus"]
[WhiteFideId "4123425"]
[BlackFideId "2208954"]
[WhiteElo "2539"]
[BlackElo "2243"]
[Result "1-0"]
[Round "01"]
[TimeControl "180+1"]
[Date "2022.04.06"]
[WhiteClock "0:01:41"]
[BlackClock "0:00:39"]

1. e4 {[%clk 0:03:00]}  c5 {[%clk 0:02:59]} 2. c3 {[%clk 0:03:00]}  Nf6 {[%clk 0:02:59]} 3. e5 {[%clk 0:03:00]}  Nd5 {[%clk 0:03:00]} 4. d4 {[%clk 0:03:01]}  cxd4 {[%clk 0:03:00]} 5. Nf3 {[%clk 0:03:02]}  e6 {[%clk 0:03:00]} 6. cxd4 {[%clk 0:03:02]}  b6 {[%clk 0:03:01]} 7. Nc3 {[%clk 0:03:01]}  Nxc3 {[%clk 0:03:01]} 8. bxc3 {[%clk 0:03:02]}  Qc7 {[%clk 0:03:02]} 9. Bd2 {[%clk 0:03:02]}  d6 {[%clk 0:03:02]} 10. Bd3 {[%clk 0:03:02]}  Nd7 {[%clk 0:03:02]} 11. O-O {[%clk 0:03:02]}  Bb7 {[%clk 0:03:02]} 12. Ng5 {[%clk 0:03:01]}  dxe5 {[%clk 0:03:02]} 13. f4 {[%clk 0:03:01]}  exd4 {[%clk 0:02:31]} 14. f5 {[%clk 0:02:56]}  dxc3 {[%clk 0:02:18]} 15. fxe6 {[%clk 0:02:53]}  Bc5+ {[%clk 0:02:13]} 16. Kh1 {[%clk 0:02:52]}  O-O-O {[%clk 0:02:07]} 17. exd7+ {[%clk 0:02:45]}  Rxd7 {[%clk 0:02:02]} 18. Bf5 {[%clk 0:02:44]}  cxd2 {[%clk 0:01:59]} 19. Qxd2 {[%clk 0:02:44]}  Rd8 {[%clk 0:01:35]} 20. Rad1 {[%clk 0:02:38]}  Bc6 {[%clk 0:01:30]} 21. Qe2 {[%clk 0:02:13]}  f6 {[%clk 0:00:59]} 22. Ne6 {[%clk 0:02:11]}  Re8 {[%clk 0:00:56]} 23. Qg4 {[%clk 0:01:56]}  h5 {[%clk 0:00:44]} 24. Qxh5 {[%clk 0:01:48]}  Bxg2+ {[%clk 0:00:41]} 25. Kxg2 {[%clk 0:01:47]}  Rxe6 {[%clk 0:00:41]} 26. Bxe6 {[%clk 0:01:45]}  Qc6+ {[%clk 0:00:42]} 27. Bd5 {[%clk 0:01:45]}  Qb5 {[%clk 0:00:39]} 28. Qf5 {[%clk 0:01:41]} 1-0


[Site "https://www.chess.com"]

[Event "Titled Tuesday Blitz April 05 Late 2022"]
[White "Suarez Uriel, Adrian"]
[Black "Rasulov, Vugar"]
[WhiteFideId "22230874"]
[BlackFideId "13402390"]
[WhiteElo "2316"]
[BlackElo "2560"]
[Result "0-1"]
[Round "01"]
[TimeControl "180+1"]
[Date "2022.04.05"]
[WhiteClock "0:02:39"]
[BlackClock "0:02:46"]

1. e4 {[%clk 0:02:58]}  c5 {[%clk 0:02:59]} 2. Nf3 {[%clk 0:02:59]}  d6 {[%clk 0:02:59]} 3. Nc3 {[%clk 0:02:56]}  Nc6 {[%clk 0:02:59]} 4. d4 {[%clk 0:02:56]}  cxd4 {[%clk 0:03:00]} 5. Nxd4 {[%clk 0:02:57]}  Nf6 {[%clk 0:03:00]} 6. Bg5 {[%clk 0:02:58]}  e6 {[%clk 0:03:00]} 7. Qd2 {[%clk 0:02:57]}  a6 {[%clk 0:03:00]} 8. O-O-O {[%clk 0:02:56]}  Be7 {[%clk 0:03:00]} 9. h4 {[%clk 0:02:54]}  O-O {[%clk 0:02:55]} 10. f4 {[%clk 0:02:48]}  Bd7 {[%clk 0:02:49]} 11. g4 {[%clk 0:02:41]}  b5 {[%clk 0:02:46]} 12. Bxf6 {[%clk 0:02:39]}  Bxf6 {[%clk 0:02:46]} 13. Nxc6 {[%clk 0:02:40]}  Bxc6 {[%clk 0:02:47]} 14. g5 {[%clk 0:02:40]}  Bxc3 {[%clk 0:02:45]} 15. Qxc3 {[%clk 0:02:40]}  Bxe4 {[%clk 0:02:46]} 16. Rg1 {[%clk 0:02:39]}  Rc8 {[%clk 0:02:46]} 0-1


[Site "https://www.chess.com"]